[Event "*** Titled Tuesday 3|2 Blitz"]
[Site "Chess.com"]
[Date "2017.05.02"]
[Round "9"]
[White "GameOverBro"]
[Black "TheNextLevelFan"]
[Result "1/2-1/2"]
[WhiteElo "2308"]
[BlackElo "2398"]
[TimeControl "180+2"]
[EndTime "15:00:02 PDT"]
[Termination "Game drawn by agreement"]

1. e4 {[%clk 0:03:01.9]} 1... e5 {[%clk 0:03:00.7]} 2. d4 {[%clk 0:03:01.2]}
2... exd4 {[%clk 0:03:01.5]} 3. Qxd4 {[%clk 0:03:03.1]} 3... Nc6 {[%clk
0:03:01.7]} 4. Qe3 {[%clk 0:03:04]} 4... Nf6 {[%clk 0:03:01.7]} 5. Nc3 {[%clk
0:03:05.4]} 5... Bb4 {[%clk 0:03:02.3]} 6. Bd2 {[%clk 0:03:06.9]} 6... O-O
{[%clk 0:03:02.9]} 7. O-O-O {[%clk 0:03:08.5]} 7... Re8 {[%clk 0:03:03.3]} 8.
Qf4 {[%clk 0:03:09.7]} 8... d6 {[%clk 0:02:57.3]} 9. f3 {[%clk 0:03:10.7]} 9...
Be6 {[%clk 0:02:45.4]} 10. a3 {[%clk 0:03:11.5]} 10... Bc5 {[%clk 0:02:43.7]}
11. Nge2 {[%clk 0:03:12.6]} 11... a5 {[%clk 0:02:18.7]} 12. Be1 {[%clk
0:02:12.7]} 12... Ne5 {[%clk 0:01:42.4]} 13. Bh4 {[%clk 0:02:06.2]} 13... Ng6
{[%clk 0:01:43.1]} 14. Bxf6 {[%clk 0:02:02.1]} 14... Nxf4 {[%clk 0:01:43.9]} 15.
Bxd8 {[%clk 0:02:03]} 15... Nxe2+ {[%clk 0:01:45.1]} 16. Bxe2 {[%clk 0:02:02.4]}
16... Rexd8 {[%clk 0:01:44.3]} 17. Nd5 {[%clk 0:01:55.3]} 17... c6 {[%clk
0:01:43.6]} 18. Nc7 {[%clk 0:01:49.9]} 18... Rac8 {[%clk 0:01:37.6]} 19. Nxe6
{[%clk 0:01:48.6]} 19... fxe6 {[%clk 0:01:39.5]} 20. c3 {[%clk 0:01:29.9]} 20...
a4 {[%clk 0:01:34]} 21. Kc2 {[%clk 0:01:29.5]} 21... Kf7 {[%clk 0:01:33.9]} 22.
f4 {[%clk 0:01:28.8]} 22... Ke7 {[%clk 0:01:33.9]} 23. Rd3 {[%clk 0:01:22.7]}
23... Rf8 {[%clk 0:01:31.6]} 24. g3 {[%clk 0:01:17.8]} 24... h6 {[%clk
0:01:28.9]} 25. h4 {[%clk 0:01:12.3]} 25... Ra8 {[%clk 0:01:08.2]} 26. h5 {[%clk
0:01:11.2]} 26... Ra5 {[%clk 0:01:08.4]} 27. Bg4 {[%clk 0:01:08.4]} 27... Rb5
{[%clk 0:00:50.7]} 28. Be2 {[%clk 0:01:06.5]} 28... Ra8 {[%clk 0:00:47.8]} 29.
Rf3 {[%clk 0:01:05.9]} 29... Rba5 {[%clk 0:00:45.6]} 30. Bc4 {[%clk 0:01:05.2]}
30... Rf8 {[%clk 0:00:43.4]} 31. Rhf1 {[%clk 0:01:05.9]} 31... d5 {[%clk
0:00:40.1]} 32. Bd3 {[%clk 0:01:04]} 32... Raa8 {[%clk 0:00:39.9]} 33. f5 {[%clk
0:00:57.5]} 33... dxe4 {[%clk 0:00:39.1]} 34. Bxe4 {[%clk 0:00:58.1]} 34... exf5
{[%clk 0:00:40.2]} 35. Bxf5 {[%clk 0:00:56.6]} 35... Rad8 {[%clk 0:00:36.1]} 36.
Re1+ {[%clk 0:00:54]} 36... Kd6 {[%clk 0:00:36.4]} 37. Re6+ {[%clk 0:00:52]}
37... Kc7 {[%clk 0:00:37.2]} 38. g4 {[%clk 0:00:51.2]} 38... Rf7 {[%clk
0:00:35.4]} 39. Rf4 {[%clk 0:00:44.7]} 39... b5 {[%clk 0:00:34.4]} 40. Rfe4
{[%clk 0:00:43.9]} 40... Rfd7 {[%clk 0:00:34.6]} 41. Re2 {[%clk 0:00:43.2]}
41... Kb6 {[%clk 0:00:29.2]} 42. Rg6 {[%clk 0:00:43.3]} 42... Rf7 {[%clk
0:00:29.4]} 43. Ree6 {[%clk 0:00:41.9]} 43... Rc7 {[%clk 0:00:30.5]} 44. Be4
{[%clk 0:00:40.5]} 44... Rdc8 {[%clk 0:00:31.7]} 45. c4 {[%clk 0:00:41]} 45...
b4 {[%clk 0:00:31.5]} 46. axb4 {[%clk 0:00:39.7]} 46... Bxb4 {[%clk 0:00:33.4]}
47. Kb1 {[%clk 0:00:36.6]} 47... a3 {[%clk 0:00:33.7]} 48. bxa3 {[%clk 0:00:36]}
48... Bxa3 {[%clk 0:00:34.8]} 49. Kc2 {[%clk 0:00:35.9]} 49... Kc5 {[%clk
0:00:34.9]} 50. Bg2 {[%clk 0:00:32.7]} 50... Kxc4 {[%clk 0:00:33.5]} 51. Rxc6+
{[%clk 0:00:33.3]} 51... Rxc6 {[%clk 0:00:34.2]} 52. Rxc6+ {[%clk 0:00:27.6]}
52... Rxc6 {[%clk 0:00:35.1]} 53. Bxc6 {[%clk 0:00:29.5]} 53... Kd4 {[%clk
0:00:35.8]} 1/2-1/2

[Event "*** Titled Tuesday 3|2 Blitz"]
[Site "Chess.com"]
[Date "2017.05.02"]
[Round "9"]
[White "GamayevOleg"]
[Black "RitvarsReimanis"]
[Result "1/2-1/2"]
[WhiteElo "2427"]
[BlackElo "2438"]
[TimeControl "180+2"]
[EndTime "15:00:09 PDT"]
[Termination "Game drawn - insufficient material"]

1. g3 {[%clk 0:03:01.9]} 1... Nf6 {[%clk 0:02:58.2]} 2. Bg2 {[%clk 0:03:03.8]}
2... e6 {[%clk 0:02:55.3]} 3. d3 {[%clk 0:03:04.8]} 3... d5 {[%clk 0:02:57.2]}
4. Nc3 {[%clk 0:03:05.7]} 4... Bb4 {[%clk 0:02:57.2]} 5. Bd2 {[%clk 0:03:06.1]}
5... O-O {[%clk 0:02:57.5]} 6. e4 {[%clk 0:03:07]} 6... d4 {[%clk 0:02:48]} 7.
Nce2 {[%clk 0:03:07.8]} 7... Bxd2+ {[%clk 0:02:48.6]} 8. Qxd2 {[%clk 0:03:09.7]}
8... e5 {[%clk 0:02:50.2]} 9. h3 {[%clk 0:03:08.7]} 9... c5 {[%clk 0:02:49]} 10.
f4 {[%clk 0:03:09.1]} 10... Nc6 {[%clk 0:02:50.2]} 11. Nf3 {[%clk 0:03:10.4]}
11... Re8 {[%clk 0:02:50.7]} 12. fxe5 {[%clk 0:03:09.5]} 12... Nxe5 {[%clk
0:02:51.3]} 13. Nxe5 {[%clk 0:03:11]} 13... Rxe5 {[%clk 0:02:53.2]} 14. O-O
{[%clk 0:03:12.5]} 14... Qe7 {[%clk 0:02:34.9]} 15. Rf4 {[%clk 0:03:12.2]} 15...
Nd5 {[%clk 0:02:32]} 16. exd5 {[%clk 0:02:23.3]} 16... Rxe2 {[%clk 0:02:32.3]}
17. Qxe2 {[%clk 0:02:14.4]} 17... Qxe2 {[%clk 0:02:28.5]} 18. Re4 {[%clk
0:02:15.7]} 18... Qxe4 {[%clk 0:02:21.9]} 19. dxe4 {[%clk 0:02:17]} 19... f6
{[%clk 0:02:20.8]} 20. c3 {[%clk 0:02:18.4]} 20... dxc3 {[%clk 0:02:16.1]} 21.
bxc3 {[%clk 0:02:19.6]} 21... Bd7 {[%clk 0:02:15.6]} 22. Kf2 {[%clk 0:02:06.5]}
22... Kf7 {[%clk 0:02:12.5]} 23. Ke3 {[%clk 0:02:07.6]} 23... Ke7 {[%clk
0:02:11]} 24. Rb1 {[%clk 0:02:02.8]} 24... Rb8 {[%clk 0:02:09.1]} 25. Kd3 {[%clk
0:01:59.6]} 25... Kd6 {[%clk 0:02:06]} 26. h4 {[%clk 0:02:01]} 26... b6 {[%clk
0:01:59.9]} 27. Rh1 {[%clk 0:01:50.2]} 27... Ke5 {[%clk 0:01:50.1]} 28. Bh3
{[%clk 0:01:49.6]} 28... Bb5+ {[%clk 0:01:39.4]} 29. c4 {[%clk 0:01:50]} 29...
Ba6 {[%clk 0:01:40.6]} 30. Rf1 {[%clk 0:01:48.1]} 30... g6 {[%clk 0:01:34.4]}
31. g4 {[%clk 0:01:45.7]} 31... b5 {[%clk 0:01:34.3]} 32. g5 {[%clk 0:01:45.7]}
32... bxc4+ {[%clk 0:01:34.8]} 33. Kc3 {[%clk 0:01:45.8]} 33... fxg5 {[%clk
0:01:31.5]} 34. hxg5 {[%clk 0:01:45.6]} 34... Kxe4 {[%clk 0:01:17.8]} 35. d6
{[%clk 0:01:42.6]} 35... Ke5 {[%clk 0:01:06.5]} 36. d7 {[%clk 0:01:42.8]} 36...
Rd8 {[%clk 0:00:59.6]} 37. Re1+ {[%clk 0:01:09.7]} 37... Kd6 {[%clk 0:00:59.6]}
38. Re6+ {[%clk 0:01:10.1]} 38... Kxd7 {[%clk 0:00:57.5]} 39. Rxa6+ {[%clk
0:01:10.3]} 39... Ke8 {[%clk 0:00:58.1]} 40. Rxa7 {[%clk 0:01:09.8]} 40... Rd3+
{[%clk 0:00:58.3]} 41. Kxc4 {[%clk 0:01:11.3]} 41... Rxh3 {[%clk 0:00:58.9]} 42.
Kxc5 {[%clk 0:01:10.7]} 42... Rh5 {[%clk 0:00:58.2]} 43. Kd6 {[%clk 0:01:11]}
43... Rxg5 {[%clk 0:00:58.8]} 44. Rxh7 {[%clk 0:01:11.7]} 44... Ra5 {[%clk
0:00:59.6]} 45. Rg7 {[%clk 0:01:05]} 45... Kf8 {[%clk 0:00:58]} 46. Rb7 {[%clk
0:00:59]} 46... Rxa2 {[%clk 0:00:54.2]} 47. Ke5 {[%clk 0:01:00.4]} 47... Ra6
{[%clk 0:00:54.3]} 48. Kf4 {[%clk 0:01:01.2]} 48... Ra5 {[%clk 0:00:50.6]} 49.
Kg4 {[%clk 0:00:59.9]} 49... Rf5 {[%clk 0:00:50.8]} 50. Ra7 {[%clk 0:01:00.3]}
50... Rf7 {[%clk 0:00:51]} 51. Rxf7+ {[%clk 0:01:00.9]} 51... Kxf7 {[%clk
0:00:52.9]} 52. Kg5 {[%clk 0:01:02.8]} 52... Kg7 {[%clk 0:00:54.4]} 53. Kg4
{[%clk 0:01:04.3]} 53... Kf6 {[%clk 0:00:55.9]} 54. Kf4 {[%clk 0:01:05.6]} 54...
g5+ {[%clk 0:00:57.3]} 55. Kg4 {[%clk 0:01:07.2]} 55... Kg6 {[%clk 0:00:58.8]}
56. Kg3 {[%clk 0:01:09.1]} 56... Kf5 {[%clk 0:01:00.3]} 57. Kf3 {[%clk
0:01:10.6]} 57... g4+ {[%clk 0:01:01.9]} 58. Kg3 {[%clk 0:01:12.2]} 58... Kg5
{[%clk 0:01:03.6]} 59. Kg2 {[%clk 0:01:14]} 59... Kf4 {[%clk 0:01:05.2]} 60. Kf2
{[%clk 0:01:15.1]} 60... g3+ {[%clk 0:01:06.5]} 61. Kg2 {[%clk 0:01:16.7]} 61...
Kg4 {[%clk 0:01:07.9]} 62. Kg1 {[%clk 0:01:18.2]} 62... Kh4 {[%clk 0:01:08.8]}
63. Kg2 {[%clk 0:01:19.6]} 63... Kg4 {[%clk 0:01:10.3]} 64. Kg1 {[%clk
0:01:21.1]} 64... Kg5 {[%clk 0:01:11.8]} 65. Kg2 {[%clk 0:01:22.5]} 65... Kf4
{[%clk 0:01:13.2]} 66. Kg1 {[%clk 0:01:23.5]} 66... Kg4 {[%clk 0:01:13.5]} 67.
Kg2 {[%clk 0:01:24.9]} 67... Kh4 {[%clk 0:01:14.1]} 68. Kg1 {[%clk 0:01:26.4]}
68... Kg5 {[%clk 0:01:15.5]} 69. Kg2 {[%clk 0:01:27.8]} 69... Kf4 {[%clk
0:01:17]} 70. Kg1 {[%clk 0:01:29.2]} 70... Kg4 {[%clk 0:01:18.4]} 71. Kg2 {[%clk
0:01:30.7]} 71... Kh4 {[%clk 0:01:19.9]} 72. Kg1 {[%clk 0:01:32.3]} 72... Kh3
{[%clk 0:01:21.4]} 73. Kh1 {[%clk 0:01:33.6]} 73... Kg4 {[%clk 0:01:22.9]} 74.
Kg2 {[%clk 0:01:35]} 74... Kf4 {[%clk 0:01:24.6]} 75. Kg1 {[%clk 0:01:36.5]}
75... Ke3 {[%clk 0:01:26]} 76. Kg2 {[%clk 0:01:37.6]} 76... Kf4 {[%clk
0:01:27.4]} 77. Kg1 {[%clk 0:01:39]} 77... Kf3 {[%clk 0:01:28.7]} 78. Kf1 {[%clk
0:01:40.2]} 78... Kf4 {[%clk 0:01:29.4]} 79. Kg2 {[%clk 0:01:41.5]} 79... Kg4
{[%clk 0:01:30.8]} 80. Kg1 {[%clk 0:01:42.9]} 80... Kf3 {[%clk 0:01:32.2]} 81.
Kf1 {[%clk 0:01:44.1]} 81... g2+ {[%clk 0:01:33.7]} 82. Kg1 {[%clk 0:01:45.4]}
82... Ke2 {[%clk 0:01:35.2]} 83. Kxg2 {[%clk 0:01:46.4]} 1/2-1/2

[Event "*** Titled Tuesday 3|2 Blitz"]
[Site "Chess.com"]
[Date "2017.05.02"]
[Round "9"]
[White "Spartakus1975"]
[Black "Gordima"]
[Result "1-0"]
[WhiteElo "2603"]
[BlackElo "2592"]
[TimeControl "180+2"]
[EndTime "15:00:45 PDT"]
[Termination "Spartakus1975 won on time"]

1. e4 {[%clk 0:02:57.4]} 1... c5 {[%clk 0:03:00.7]} 2. c3 {[%clk 0:02:57.2]}
2... Nf6 {[%clk 0:02:58.3]} 3. e5 {[%clk 0:02:58.4]} 3... Nd5 {[%clk 0:02:59.8]}
4. Nf3 {[%clk 0:03:00]} 4... Nc6 {[%clk 0:02:58.3]} 5. Bc4 {[%clk 0:03:00.5]}
5... Nb6 {[%clk 0:02:57.6]} 6. Bb3 {[%clk 0:03:01.4]} 6... c4 {[%clk 0:02:56.6]}
7. Bc2 {[%clk 0:03:02.4]} 7... d6 {[%clk 0:02:57.4]} 8. exd6 {[%clk 0:03:02.1]}
8... e6 {[%clk 0:02:48.2]} 9. O-O {[%clk 0:03:00.9]} 9... Bxd6 {[%clk
0:02:48.8]} 10. d4 {[%clk 0:02:54.6]} 10... cxd3 {[%clk 0:02:37.3]} 11. Qxd3
{[%clk 0:02:54.7]} 11... Be7 {[%clk 0:02:38.9]} 12. Qe2 {[%clk 0:02:50.4]} 12...
O-O {[%clk 0:02:35.9]} 13. Nbd2 {[%clk 0:02:41]} 13... Nd5 {[%clk 0:02:25.1]}
14. Ne4 {[%clk 0:02:36]} 14... Nf6 {[%clk 0:02:09.3]} 15. Bf4 {[%clk 0:02:32.8]}
15... Qa5 {[%clk 0:02:03.6]} 16. Rad1 {[%clk 0:02:13.6]} 16... Qxa2 {[%clk
0:01:52.9]} 17. b4 {[%clk 0:01:56.1]} 17... Nxe4 {[%clk 0:01:44.7]} 18. Qxe4
{[%clk 0:01:56.5]} 18... f5 {[%clk 0:01:30.3]} 19. Qe2 {[%clk 0:01:56.6]} 19...
Bf6 {[%clk 0:01:28]} 20. b5 {[%clk 0:01:51.5]} 20... Ne7 {[%clk 0:01:28.9]} 21.
c4 {[%clk 0:01:34.9]} 21... a6 {[%clk 0:01:11.6]} 22. b6 {[%clk 0:01:25.6]}
22... Nc6 {[%clk 0:00:57.4]} 23. Bd6 {[%clk 0:01:24.7]} 23... Re8 {[%clk
0:00:56]} 24. c5 {[%clk 0:01:03.9]} 24... a5 {[%clk 0:00:50.2]} 25. Rd2 {[%clk
0:00:52.9]} 25... Qa3 {[%clk 0:00:44.3]} 26. Rd3 {[%clk 0:00:46.9]} 26... Qb4
{[%clk 0:00:39.2]} 27. h3 {[%clk 0:00:46.3]} 27... a4 {[%clk 0:00:39]} 28. Rb1
{[%clk 0:00:46.2]} 28... Qe4 {[%clk 0:00:34.7]} 29. Re3 {[%clk 0:00:43.7]} 29...
Qd5 {[%clk 0:00:35.8]} 30. Rd1 {[%clk 0:00:38.1]} 30... Qa2 {[%clk 0:00:36.4]}
31. Rd2 {[%clk 0:00:31.4]} 31... a3 {[%clk 0:00:32.7]} 32. Bb3 {[%clk
0:00:30.5]} 32... Qa1+ {[%clk 0:00:29.7]} 33. Kh2 {[%clk 0:00:30.4]} 33... h6
{[%clk 0:00:16]} 34. Ra2 {[%clk 0:00:29.6]} 34... Qc1 {[%clk 0:00:13.2]} 35.
Bxe6+ {[%clk 0:00:25.6]} 35... Bxe6 {[%clk 0:00:12.9]} 36. Rxe6 {[%clk
0:00:27.2]} 36... Kf7 {[%clk 0:00:11.7]} 37. Rxe8 {[%clk 0:00:23.9]} 37... Rxe8
{[%clk 0:00:13.6]} 38. Qd3 {[%clk 0:00:24.3]} 38... Kg6 {[%clk 0:00:06.8]} 39.
g4 {[%clk 0:00:20.1]} 39... Ra8 {[%clk 0:00:04.3]} 40. Qxf5+ {[%clk 0:00:20.2]}
40... Kf7 {[%clk 0:00:05.8]} 41. Qd5+ {[%clk 0:00:20]} 41... Kg6 {[%clk
0:00:07]} 42. h4 {[%clk 0:00:19.2]} 42... Kh7 {[%clk 0:00:07.5]} 43. g5 {[%clk
0:00:19.3]} 43... hxg5 {[%clk 0:00:05]} 44. hxg5 {[%clk 0:00:20.2]} 44... Bb2
{[%clk 0:00:05.3]} 45. Qf5+ {[%clk 0:00:19.5]} 45... Kg8 {[%clk 0:00:04.9]} 46.
g6 {[%clk 0:00:20.2]} 46... Qh6+ {[%clk 0:00:05.3]} 47. Kg2 {[%clk 0:00:21.2]}
47... Re8 {[%clk 0:00:05]} 48. Qf7+ {[%clk 0:00:21.5]} 1-0

[Event "*** Titled Tuesday 3|2 Blitz"]
[Site "Chess.com"]
[Date "2017.05.02"]
[Round "9"]
[White "ItalianMachine"]
[Black "evgenyermolaev"]
[Result "0-1"]
[WhiteElo "2204"]
[BlackElo "2355"]
[TimeControl "180+2"]
[EndTime "15:00:53 PDT"]
[Termination "evgenyermolaev won by resignation"]

1. d4 {[%clk 0:03:02]} 1... Nf6 {[%clk 0:03:00.8]} 2. f3 {[%clk 0:02:57.3]} 2...
c5 {[%clk 0:02:59.1]} 3. d5 {[%clk 0:02:57.4]} 3... e6 {[%clk 0:02:56.2]} 4. c4
{[%clk 0:02:56.6]} 4... exd5 {[%clk 0:02:41.8]} 5. cxd5 {[%clk 0:02:57]} 5...
Nh5 {[%clk 0:02:34.6]} 6. g3 {[%clk 0:02:45.3]} 6... Bd6 {[%clk 0:02:31.6]} 7.
e4 {[%clk 0:02:43]} 7... O-O {[%clk 0:02:14.6]} 8. f4 {[%clk 0:02:43.8]} 8... g6
{[%clk 0:02:10.4]} 9. Nf3 {[%clk 0:02:27.1]} 9... Re8 {[%clk 0:02:09.1]} 10. Nc3
{[%clk 0:02:25.7]} 10... a6 {[%clk 0:01:35.4]} 11. a4 {[%clk 0:02:25.6]} 11...
Bc7 {[%clk 0:01:34.7]} 12. Bd3 {[%clk 0:02:20]} 12... d6 {[%clk 0:01:31.3]} 13.
O-O {[%clk 0:02:20.1]} 13... Bg4 {[%clk 0:01:29.1]} 14. Kg2 {[%clk 0:02:14.2]}
14... Qc8 {[%clk 0:01:19.9]} 15. Re1 {[%clk 0:02:14.2]} 15... Nd7 {[%clk
0:00:48.7]} 16. a5 {[%clk 0:02:15.1]} 16... Qd8 {[%clk 0:00:40.3]} 17. Bd2
{[%clk 0:01:41.2]} 17... Bxa5 {[%clk 0:00:35]} 18. Rxa5 {[%clk 0:01:27.3]} 18...
Qxa5 {[%clk 0:00:35.2]} 19. Nb5 {[%clk 0:01:28.3]} 19... Qb6 {[%clk 0:00:26.2]}
20. Na3 {[%clk 0:01:25.5]} 20... Qc7 {[%clk 0:00:21.5]} 21. h3 {[%clk
0:01:14.2]} 21... Bxf3+ {[%clk 0:00:20.3]} 22. Qxf3 {[%clk 0:01:15.2]} 22... b5
{[%clk 0:00:21.3]} 23. Nc2 {[%clk 0:00:56.1]} 23... c4 {[%clk 0:00:20.9]} 24.
Bf1 {[%clk 0:00:56.1]} 24... Nc5 {[%clk 0:00:18.9]} 25. Bc3 {[%clk 0:00:50.7]}
25... a5 {[%clk 0:00:14.7]} 26. g4 {[%clk 0:00:50.6]} 26... Ng7 {[%clk
0:00:14.9]} 27. b4 {[%clk 0:00:29.4]} 27... cxb3 {[%clk 0:00:13.2]} 28. Nd4
{[%clk 0:00:30.4]} 28... b4 {[%clk 0:00:12.5]} 29. Ba1 {[%clk 0:00:27.8]} 29...
a4 {[%clk 0:00:13.7]} 30. Nc6 {[%clk 0:00:19.3]} 30... a3 {[%clk 0:00:12.1]} 31.
Bd4 {[%clk 0:00:19.8]} 31... b2 {[%clk 0:00:11]} 32. e5 {[%clk 0:00:18.2]} 32...
Na4 {[%clk 0:00:06.4]} 33. Qb3 {[%clk 0:00:10.7]} 33... a2 {[%clk 0:00:03.9]}
34. Qxa2 {[%clk 0:00:11.4]} 34... Nc3 {[%clk 0:00:05]} 35. Qxb2 {[%clk 0:00:10]}
35... Ra2 {[%clk 0:00:05.9]} 36. Bxc3 {[%clk 0:00:09.8]} 36... Rxb2+ {[%clk
0:00:06.7]} 37. Bxb2 {[%clk 0:00:11.7]} 37... Ra8 {[%clk 0:00:06.5]} 38. Bd4
{[%clk 0:00:09.1]} 38... b3 {[%clk 0:00:05.9]} 39. Rc1 {[%clk 0:00:06.5]} 39...
h5 {[%clk 0:00:03.3]} 40. Kg3 {[%clk 0:00:07.4]} 40... Qd7 {[%clk 0:00:04]} 41.
Bd3 {[%clk 0:00:06.4]} 41... Ra2 {[%clk 0:00:02.6]} 42. f5 {[%clk 0:00:06.1]}
42... hxg4 {[%clk 0:00:03.2]} 43. e6 {[%clk 0:00:08]} 43... fxe6 {[%clk
0:00:04.1]} 44. fxe6 {[%clk 0:00:08.4]} 44... Qe8 {[%clk 0:00:05.3]} 45. hxg4
{[%clk 0:00:08.2]} 45... b2 {[%clk 0:00:05.7]} 46. Rf1 {[%clk 0:00:08.9]} 46...
Nxe6 {[%clk 0:00:06.1]} 47. dxe6 {[%clk 0:00:09.4]} 47... Qxe6 {[%clk
0:00:07.1]} 48. Nb4 {[%clk 0:00:10.8]} 48... Ra4 {[%clk 0:00:07]} 49. Nc2 {[%clk
0:00:10.7]} 49... Rxd4 {[%clk 0:00:07]} 50. Nxd4 {[%clk 0:00:12.6]} 50... Qe3+
{[%clk 0:00:07.9]} 51. Rf3 {[%clk 0:00:13.4]} 51... Qxd4 {[%clk 0:00:08.6]} 52.
Bxg6 {[%clk 0:00:15.3]} 52... Qe5+ {[%clk 0:00:08.9]} 53. Kh4 {[%clk 0:00:15.9]}
53... Qh2+ {[%clk 0:00:08.7]} 54. Kg5 {[%clk 0:00:17]} 54... Qe5+ {[%clk
0:00:08.7]} 55. Kh6 {[%clk 0:00:16.7]} 55... Qg7+ {[%clk 0:00:09.1]} 56. Kg5
{[%clk 0:00:17.7]} 56... b1=Q {[%clk 0:00:09]} 0-1

[Event "*** Titled Tuesday 3|2 Blitz"]
[Site "Chess.com"]
[Date "2017.05.02"]
[Round "9"]
[White "DiogenesSinopeus"]
[Black "BjarkeSahl"]
[Result "0-1"]
[WhiteElo "2237"]
[BlackElo "2186"]
[TimeControl "180+2"]
[EndTime "15:01:04 PDT"]
[Termination "BjarkeSahl won by resignation"]

1. d4 {[%clk 0:03:02]} 1... g6 {[%clk 0:02:53.8]} 2. c4 {[%clk 0:03:03.1]} 2...
Bg7 {[%clk 0:02:55.3]} 3. Nc3 {[%clk 0:03:04.3]} 3... d6 {[%clk 0:02:55.4]} 4.
Nf3 {[%clk 0:03:05]} 4... Nd7 {[%clk 0:02:55.7]} 5. g3 {[%clk 0:03:03.5]} 5...
e5 {[%clk 0:02:56]} 6. Bg2 {[%clk 0:03:04.4]} 6... Ne7 {[%clk 0:02:57.1]} 7. O-O
{[%clk 0:03:04.7]} 7... O-O {[%clk 0:02:57.4]} 8. e4 {[%clk 0:02:58.7]} 8...
exd4 {[%clk 0:02:56.1]} 9. Nxd4 {[%clk 0:02:59]} 9... Nc6 {[%clk 0:02:57.5]} 10.
Nde2 {[%clk 0:02:39.8]} 10... Nde5 {[%clk 0:02:49.2]} 11. b3 {[%clk 0:02:34.5]}
11... Bg4 {[%clk 0:02:38.6]} 12. f3 {[%clk 0:02:29.3]} 12... Bd7 {[%clk
0:02:31.9]} 13. f4 {[%clk 0:02:23.5]} 13... Ng4 {[%clk 0:02:30.9]} 14. h3 {[%clk
0:02:24.4]} 14... Nf6 {[%clk 0:02:27.6]} 15. Be3 {[%clk 0:02:13]} 15... Re8
{[%clk 0:02:21.1]} 16. Qd2 {[%clk 0:02:14.3]} 16... Nh5 {[%clk 0:01:53.7]} 17.
Kh2 {[%clk 0:02:10.4]} 17... a5 {[%clk 0:01:51.5]} 18. a3 {[%clk 0:01:46.7]}
18... a4 {[%clk 0:01:47.8]} 19. b4 {[%clk 0:01:44.1]} 19... Be6 {[%clk
0:01:48.6]} 20. Qd3 {[%clk 0:01:37.8]} 20... Nf6 {[%clk 0:01:39.5]} 21. Rad1
{[%clk 0:01:35.2]} 21... Nd7 {[%clk 0:01:39.5]} 22. Nd5 {[%clk 0:01:33.6]} 22...
h5 {[%clk 0:01:29.3]} 23. Ndc3 {[%clk 0:01:17.4]} 23... Nde5 {[%clk 0:01:11.2]}
24. fxe5 {[%clk 0:01:07.3]} 24... Nxe5 {[%clk 0:01:12.2]} 25. Qb1 {[%clk
0:00:57.1]} 25... Nxc4 {[%clk 0:01:11.1]} 26. Qc1 {[%clk 0:00:44.1]} 26... h4
{[%clk 0:00:48.7]} 27. g4 {[%clk 0:00:39]} 27... Nxe3 {[%clk 0:00:48.2]} 28.
Qxe3 {[%clk 0:00:39.2]} 28... Be5+ {[%clk 0:00:49.5]} 29. Kh1 {[%clk 0:00:39.2]}
29... Ra6 {[%clk 0:00:47.5]} 30. Nd4 {[%clk 0:00:38.4]} 30... Bc4 {[%clk
0:00:45.8]} 31. Rfe1 {[%clk 0:00:37.1]} 31... c6 {[%clk 0:00:37]} 32. Bf1 {[%clk
0:00:37.3]} 32... Bxf1 {[%clk 0:00:34.9]} 33. Rxf1 {[%clk 0:00:39.2]} 33... Qb6
{[%clk 0:00:28]} 34. Qf3 {[%clk 0:00:32]} 34... Re7 {[%clk 0:00:27.5]} 35. Nde2
{[%clk 0:00:29.1]} 35... Ra8 {[%clk 0:00:26.5]} 36. Nb1 {[%clk 0:00:21.8]} 36...
Qb5 {[%clk 0:00:22.1]} 37. Nd2 {[%clk 0:00:21.7]} 37... Rae8 {[%clk 0:00:18.8]}
38. Qf2 {[%clk 0:00:13.2]} 38... Bg7 {[%clk 0:00:10.9]} 39. Ng1 {[%clk
0:00:05.9]} 39... Qd3 {[%clk 0:00:08.7]} 40. Ngf3 {[%clk 0:00:05.2]} 40... Qxa3
{[%clk 0:00:05.1]} 41. Kg2 {[%clk 0:00:03.2]} 41... Qxb4 {[%clk 0:00:05.8]} 42.
Rb1 {[%clk 0:00:03.5]} 42... Qa5 {[%clk 0:00:06.7]} 43. Nc4 {[%clk 0:00:03]}
43... Qc5 {[%clk 0:00:06.6]} 44. Qxc5 {[%clk 0:00:03.3]} 44... dxc5 {[%clk
0:00:07.8]} 45. e5 {[%clk 0:00:04]} 45... b5 {[%clk 0:00:08.2]} 46. Nd6 {[%clk
0:00:05]} 46... Rd8 {[%clk 0:00:09]} 47. Rfe1 {[%clk 0:00:05.4]} 47... Bxe5
{[%clk 0:00:08.2]} 48. Nxe5 {[%clk 0:00:06.3]} 48... Rxd6 {[%clk 0:00:09.3]} 49.
Kf3 {[%clk 0:00:03.1]} 49... Rde6 {[%clk 0:00:09.1]} 50. Kf4 {[%clk 0:00:04.2]}
50... c4 {[%clk 0:00:10.3]} 51. Rbd1 {[%clk 0:00:03.2]} 51... a3 {[%clk
0:00:11]} 52. Rd8+ {[%clk 0:00:03.8]} 52... Kg7 {[%clk 0:00:11.5]} 53. Ra8
{[%clk 0:00:04.9]} 53... b4 {[%clk 0:00:11.6]} 54. Rd1 {[%clk 0:00:02.5]} 54...
Rxe5 {[%clk 0:00:11.8]} 55. Rdd8 {[%clk 0:00:03.7]} 55... g5+ {[%clk 0:00:13.1]}
56. Kf3 {[%clk 0:00:04.7]} 56... Kf6 {[%clk 0:00:14.4]} 57. Rh8 {[%clk
0:00:05.2]} 57... Re3+ {[%clk 0:00:14.4]} 58. Kf2 {[%clk 0:00:06.4]} 58... Re2+
{[%clk 0:00:15.8]} 59. Kf1 {[%clk 0:00:07.1]} 59... R7e3 {[%clk 0:00:16.7]} 60.
Rae8 {[%clk 0:00:07]} 60... Rxe8 {[%clk 0:00:16.9]} 0-1